Cogmind - Beta 13 @@@ ROGUE MODE // 2024.04.01 @ 16:30:53 Player: Tyzemol Result: Smashed by cave-in Performance ------------- Evolutions (0) 0 Regions Visited (1) 200 Robots Destroyed (3) 15 Value Destroyed (21) 21 Prototype IDs (1) 20 Alien Tech Used (0) 0 Bonus (0) 0 TOTAL SCORE: 256 Bonus ------- None Cogmind --------- Core Integrity 0/250 Matter 275/300 Energy 77/100 System Corruption 25% Temperature Cool (77) Movement Treading (240) Ox1 Location -10/Materials Parts ------- > --- POWER (1) -------- (None) > --- PROPULSION (2) --- Light Treads > --- UTILITY (2) ------ Medium Storage Unit Large Storage Unit > --- WEAPON (2) ------- Improved Medium Laser > --- INVENTORY (15) --- Light Ion Engine Sensor Array Seismic Detector Improved Medium Laser Peak State ------------ > --- POWER ------------ Ion Engine > --- PROPULSION ------- Light Treads Light Treads > --- UTILITY ---------- Improved Terrain Scanner Seismic Detector > --- WEAPON ----------- Improved Medium Laser Improved Medium Laser > --- INVENTORY -------- Light Ion Engine Small Storage Unit Medium Laser Light Assault Rifle Mining Laser [Rating: 13] Favorites ----------- Power Ion Engine Engine Ion Engine Propulsion Light Treads Treads Light Treads Utility Improved Terrain Scanner Device Improved Terrain Scanner Storage Small Storage Unit Weapon Improved Medium Laser Energy Gun Improved Medium Laser Ballistic Gun Light Assault Rifle Special Weapon Mining Laser Build | -11 -10 ------- Run | Yrd Mat Slots Evolved . | . . Power . | . . Propulsion . | . . Utility . | . . Weapon . | . . Parts Attached 15 | 7 8 Power 1 | 1 . Engine 1 | 1 . Core . | . . Reactor . | . . Propulsion 2 | 2 . Treads 2 | 2 . Leg . | . . Wheel . | . . Hover . | . . Flight . | . . Utility 5 | 2 3 Device 2 | 1 1 Storage 3 | 1 2 Processor . | . . Hackware . | . . Protection . | . . Artifact . | . . Weapon 7 | 2 5 Energy Gun 5 | 2 3 Energy Cannon . | . . Ballistic Gun 1 | . 1 Ballistic Cannon . | . . Launcher . | . . Special Weapon 1 | . 1 Impact Weapon . | . . Slashing Weapon . | . . Piercing Weapon . | . . Special Melee Weapon . | . . Unidentified Prototypes 1 | . 1 Parts Lost 6 | . 6 Power 1 | . 1 Propulsion 1 | . 1 Utility 1 | . 1 Weapon 3 | . 3 Highest Loss Streak 6 | . 6 To Critical Strikes . | . . Average Slot Usage (%) 99 | . 99 Engine 13 | . 13 Treads 28 | . 28 Device 25 | . 25 Storage 2 | . 2 Energy Gun 24 | . 24 Special Weapon 2 | . 2 Naked Turns . | . . Heaviest Build 30 | 15 30 Greatest Support 40 | 40 40 Greatest Overweight (x) . | . . Average Overweight (x) . | . . Largest Inventory Capacity 15 | 8 15 Average Capacity 6 | 7 6 Most Carried 7 | 3 7 Average Carried 4 | 2 5 Final Capacity 15 | 8 15 Final Carried 4 | 3 4 Class Distribution -------------------- 100% | Mutant Dominant Class ---------------- Mutant | -10/Materials Resources | -11 -10 ----------- Run | Yrd Mat Matter Collected 300 | 270 30 Remotely . | . . Salvage Created 68 | 68 . Parts 7 | 7 . Haulers Intercepted . | . . Recyclers Shooed . | . . Parts Field Recycled . | . . Retrieved Matter . | . . Parts Self-Destructed . | . . Prevented . | . . Kills | -11 -10 ------- Run | Yrd Mat Combat Hostiles Destroyed . | . . Classes Destroyed 1 | 1 . Tunneler 3 | 3 . Best Kill Streak 1 | 1 . Combat Bots Only . | . . Max Kills in Single Turn 1 | 1 . Gunslinging . | . . Exploded . | . . Melee . | . . Uniques/NPCs Destroyed . | . . Combat | -11 -10 -------- Run | Yrd Mat Hostile Shots Fired . | . . Missed . | . . Damage Taken 1262 | . 1262 Core 270 | . 270 Absorbed by Shields . | . . Core Remaining (%) 100 | 100 . Volleys Fired 23 | 5 18 Largest 2 | 2 2 Hottest 156 | 100 156 Shots Fired 37 | 10 27 Gun 31 | 10 21 Cannon . | . . Launcher . | . . Special 6 | . 6 Kinetic 5 | . 5 Thermal 32 | 10 22 Explosive . | . . Electromagnetic . | . . Robot Hit Streak 4 | 3 4 Robot Miss Streak 1 | 1 1 Penetration Max . | . . Secondary Targets . | . . Shots Hit Robots 8 | 7 1 Core Hits 3 | 3 . Critical Kills . | . . Critical Parts Destroyed . | . . Critical Strikes 1 | 1 . Burn 1 | 1 . Melee Attacks . | . . Impact . | . . Slashing . | . . Piercing . | . . Sneak Attacks . | . . Combat Hostiles . | . . Follow-up Attacks . | . . Damage Inflicted 106 | 88 18 Guns 106 | 88 18 Cannons . | . . Explosions . | . . Melee . | . . Ramming . | . . Kinetic . | . . Thermal 106 | 88 18 Explosive . | . . Electromagnetic . | . . Impact . | . . Slashing . | . . Piercing . | . . Highest Corruption 24 | . 24 Average Corruption 15 | . 15 Corruption Purged . | . . Corruption Blocked . | . . Effects 1 | . 1 Data Loss (minor) 1 | . 1 Overload Shots . | . . Overflow Damage . | . . Projectiles . | . . Explosions . | . . Melee . | . . Knockbacks . | . . Impact . | . . Kinetic . | . . Secondary . | . . Self-Inflicted Damage . | . . Shots . | . . Rammed . | . . Targets Rammed . | . . Kicked . | . . Crushed . | . . Highest Temperature 119 | 78 119 Average Temperature 42 | 35 44 Received Heat Transfer . | . . Siege Activations . | . . Robots Corrupted . | . . Combat Hostiles . | . . Parts Fried . | . . Impact Corruptions . | . . Robots Melted . | . . Combat Hostiles . | . . Parts Melted . | . . Heat Transferred 370 | 333 37 Parts Sabotaged . | . . Parts Stolen . | . . Parts Stripped . | . . Power Chain Reactions . | . . Alert | -11 -10 ------- Run | Yrd Mat Peak Influence 18 | 15 18 Initial 9 | . 9 Average 10 | 8 11 Maximum Alert Level . | . . Low Security (%) 100 | 100 100 Level 1 . | . . Level 2 . | . . Level 3 . | . . Level 4 . | . . Level 5 . | . . High Security . | . . Max Security . | . . Squads Dispatched 1 | . 1 Investigation . | . . Extermination . | . . Reinforcement 1 | . 1 Assault . | . . Garrison . | . . Intercept . | . . Searches Triggered . | . . Construction Impeded . | . . Haulers Reinforced . | . . Active Scanning Responses . | . . Cargo Convoy Interrupts . | . . Stealth | -11 -10 --------- Run | Yrd Mat Distress Signals . | . . Communications Jammed . | . . Distress Signals . | . . Times Spotted 1 | . 1 Peak Tracking Total 1 | . 1 Tactical Retreats . | . . Traps | -11 -10 ------- Run | Yrd Mat Traps Triggered . | . . Indirectly . | . . Trap Hack Attempts . | . . Triggered . | . . Disarmed . | . . Reprogrammed 2 | . 2 Reused . | . . Traps Extracted . | . . Installed . | . . Triggered . | . . Machines | -11 -10 ---------- Run | Yrd Mat Machines Disabled . | . . Max in Single Turn . | . . Machines Repaired . | . . Machines Dismantled . | . . Machines Sabotaged . | . . Overloaded Fab Kills . | . . Hacking | -11 -10 --------- Run | Yrd Mat Machines Accessed 2 | . 2 Terminals 1 | . 1 Fabricators . | . . Repair Stations . | . . Recycling Units 1 | . 1 Scanalyzers . | . . Garrison Access . | . . Total Hacks 6 | . 6 Successful 5 | . 5 Failed 1 | . 1 Catastrophic . | . . Database Lockouts . | . . Manual . | . . Terminals 5 | . 5 Fabricators . | . . Repair Stations . | . . Recycling Units 1 | . 1 Scanalyzers . | . . Garrison Access . | . . Terminal Hacks 4 | . 4 Level Access Points 1 | . 1 Alert Level 1 | . 1 Reprogram Traps 1 | . 1 Zone Layout 1 | . 1 Fabricator Hacks . | . . Repair Station Hacks . | . . Recycling Unit Hacks 1 | . 1 Report Inventory 1 | . 1 Scanalyzer . | . . Garrison Access Hacks . | . . Unauthorized Hacks . | . . Terminals . | . . Fabricators . | . . Repair Stations . | . . Recycling Units . | . . Scanalyzers . | . . Garrison Access . | . . Data Cores Recovered . | . . Used . | . . Hacking Detections 1 | . 1 Full Trace Events . | . . Feedback Events . | . . Feedback Blocked . | . . Robot Schematics Acquired . | . . Robots Built . | . . Authchips . | . . Time . | . . Total Robot Build Rating . | . . Part Schematics Acquired . | . . Parts Built . | . . Authchips . | . . Time . | . . Total Part Build Rating . | . . Parts Repaired . | . . Time . | . . Parts Recycled . | . . Recycled Matter . | . . Retrieved Matter . | . . Retrieved Components . | . . Parts Scanalyzed . | . . Part Schematics Acquired . | . . Parts Damaged . | . . Bothacking | -11 -10 ------------ Run | Yrd Mat Used RIF Installer . | . . Robots Hacked . | . . Non-combat . | . . Combat . | . . Robot Hacks Applied . | . . Relay Couplers Released . | . . Fabnet Peak Effective % . | . . Robots Rewired . | . . Allies Hacked . | . . Hacks Repelled . | . . Allies | -11 -10 -------- Run | Yrd Mat Total Allies . | . . Largest Group . | . . Highest-Rated Group . | . . Highest-Rated Ally . | . . Total Orders . | . . Ally Attacks . | . . Total Damage . | . . Kills . | . . Allies Corrupted . | . . Allies Melted . | . . Intel | -11 -10 ------- Run | Yrd Mat Robot Analysis Total . | . . Derelict Logs Recovered . | . . Drone Launches . | . . Drone Recoveries . | . . Exploration | -11 -10 ------------- Run | Yrd Mat Turns Passed 762 | 237 525 Spaces Moved 407 | 135 272 Core 7 | 7 . Treads 400 | 128 272 Legs . | . . Wheels . | . . Hover . | . . Flight . | . . Fastest Speed 50 | 50 160 Average Speed 158 | 154 160 Slowest Speed 160 | 160 160 Overloaded Moves . | . . Propulsion Burnouts . | . . Robots Hopped . | . . Cave-ins Triggered 5 | . 5 Exploration Rate (%) 26 | 7 45 Regions Visited 1 Branch Regions . Pre-discovered Areas . | . . Known Exits Taken . | . . Unknown Exits Taken 1 | 1 . Scrap Searched . | . . Spaces Dug 6 | . 6 Terrain Destroyed 6 | . 6 Melee . | . . Projectile 6 | . 6 AOE . | . . Terrain Rammed . | . . Walls Destroyed . | . . Machines Disabled . | . . Actions | -11 -10 --------- Run | Yrd Mat Total 477 | 150 327 Wait 13 | 1 12 Move 406 | 134 272 Hop . | . . Pick Up 12 | 3 9 Fast Attach 9 | 7 2 Attach 3 | . 3 Detach 1 | . 1 Swap 3 | . 3 Drop 7 | . 7 Fire 23 | 5 18 Melee . | . . Ram . | . . Kick . | . . Crush . | . . Escape Stasis . | . . Rewire . | . . Trap . | . . Miscellaneous . | . . Route ------- -11/Scrapyard -10/Materials (discovered 4 exits: *Mat x3 / [*Min]) History --------- Turn | Location | Event 5 | -11/Scrapyard | Discovered new exit (range 16) 238 | -11/Scrapyard | Entered Materials 308 | -10/Materials | Build established: Mutant 311 | -10/Materials | Discovered new exit (range 12) 363 | -10/Materials | Met 8R-AWN 421 | -10/Materials | Discovered new exit (range 3) 437 | -10/Materials | Identified exit to Materials 739 | -10/Materials | Crushed by falling debris 745 | -10/Materials | Crushed by falling debris 745 | -10/Materials | System corruption reached 10% 750 | -10/Materials | Crushed by falling debris 750 | -10/Materials | Core integrity fell below 50% 763 | -10/Materials | Crushed by falling debris 763 | -10/Materials | Core integrity fell below 20% 764 | -10/Materials | Crushed by falling debris 764 | -10/Materials | Smashed by cave-in Last Messages --------------- 00745_ System corrupted by crushing effect (+5). 00745_ Imp. Terrain Scanner destroyed. 00745_ System corrupted by crushing effect (+5). 00745_ Imp. Medium Laser destroyed. 00745_ System corrupted by crushing effect (+5). [Achievement: System Compromised] Note that some effects don't stack, e.g. attaching both Med. Storage Unit and Lrg. Storage Unit does not combine the two effects (all such effects are marked ). 00750_ The unstable cave ceiling collapses. 00750_ Crushed by falling debris. 00757_ System corrupted: Component data lost. 00763_ The unstable cave ceiling collapses. 00763_ Crushed by falling debris. 00763_ Lgt. Assault Rifle destroyed. 00763_ System corrupted by crushing effect (+5). 00764_ The unstable cave ceiling collapses. 00764_ Crushed by falling debris. 00764_ Lgt. Treads destroyed. 00764_ System corrupted by crushing effect (+1). Map ----- +----------------------------------------------------+ | | | | | | | | | | | | | | | | | | | | | | | | | | | | | | | | | | | | | | | | | | | ?????#????????#?????#????############????????????? | | ???#???????#???#?#?#??????# """ #????????????? | | ????#?#??########???#????## "T" #????????????? | | #######??# ###??#???### #????????????? | | #?## """ ###??????#@# #????????????? | | """ #?## """ ##???#?##### """ """ #????????????? | | """ #??# """ ######## # """ """ #???? ???????? | | """ #### # # < # """ """ #?#??????????? | | # # """ # # # #?#?#????????? | | | | + + """ # + #####+#######?#????????? | | ####### # """ # # ???? | | ??????# # # "T" # ^######??????????? | | ####### # [[% # """ # ^#???????????????? | | # [[ ###################???#???????????? | | # [ # #?????????"? ?????#?????????????? | | ## ##########"#"#??? ?????R???##????????????????? | | ## # [ #? ?????????#??????????????????? | | ## + ##? ?????? ?????? ?????????????? | | ## # """ """ ##??"????? ??????? ?????????????? | | ## # """ """ ## ?????????????????????????????? | | ## # """ """ ##??"???????????????????????????? | | ## ###############?????#????????????????????????? | | ## ########??#????#?????#?????????? ????????????? | | ## ## ########??????????????????????????????? | | ## ## ??????????????????????????????? | | # # ? ???????????????????????????? | | # # ????? ???????????????????????? | | # # ###+####???#??????????????????????????? | | # ## ## ??????????????????????????????? | +----------------------------------------------------+ Best States ------------- Heat Dissipation 25 Energy Generation 10 Energy Capacity 250 Matter Stores 300 Matter Capacity 300 Sight Range 16 Terrain Scan Range 16 Terrain Scan Density 10 Evasion (%) 40 Recoil Reduction 2 Item Schematics ----------------- None Robot Schematics ------------------ None Fabricated ------------ Nothing Alien Tech Used ----------------- None Achievements -------------- Risk Taker System Compromised Unlikely Earthworm Challenges ------------ None Game ------ Seed ThiefMiniDeconstructor Manual? 0 Play Time 00:22:03 Cumulative 2.4 hours Start 2024.04.01 @ 16:01:44 End 2024.04.01 @ 16:30:53 Sessions 1 Manual Loads 0 Difficulty Rogue Special Mode None Game No. 3 Rogue 3 Adventurer 0 Explorer 0 Win Type - Total 0 Types 0/0/0/0/0/0/0/0/0 Lore% 0 Gallery% 2 Achievement% 3 Wizard Run 0 Options --------- Layout 0 ASCII 0 Keyboard 1 Movement Numpad Keybinds 0 Fullscreen 1 Font 18/SmallcapsGlow Map View 76x50 Zoom Use 0% Tactical HUD 1 Map Filters NONE Filters NONE Steam 0 RUN: 6e31e874-4617-418f-be79-4ff53fc5252f